Cogmind - Beta 13 @@@ ROGUE MODE // 2024.04.06 @ 19:01:58 Player: Calliope Result: Destroyed self with Rocket Launcher Performance ------------- Evolutions (1) 500 Regions Visited (3) 600 Robots Destroyed (57) 285 Value Destroyed (1186) 1186 Prototype IDs (2) 40 Alien Tech Used (0) 0 Bonus (19) 19 TOTAL SCORE: 2630 Bonus ------- High Alert Combat Kills 19 Cogmind --------- Core Integrity 0/400 Matter 377/450 Energy 100/100 System Corruption 4% Temperature Cool (0) Movement Flying (360) Ox4 Location -9/Mines Parts ------- > --- POWER (1) -------- (None) > --- PROPULSION (2) --- Flight Unit > --- UTILITY (4) ------ Medium Storage Unit Compact Matter Pod Structural Scanner Improved Terrain Scan Processor > --- WEAPON (2) ------- Improved Medium Laser Rocket Launcher > --- INVENTORY (10) --- Hover Unit Hover Unit Visual Processing Unit Improved Terrain Scanner Peak State ------------ > --- POWER ------------ Light Ion Engine > --- PROPULSION ------- Light Treads Improved Flight Unit > --- UTILITY ---------- Structural Scanner Visual Processing Unit Improved Terrain Scan Processor > --- WEAPON ----------- Improved Medium Laser Rocket Launcher > --- INVENTORY -------- Hover Unit Hover Unit Visual Processing Unit Improved Terrain Scanner [Rating: 16] Favorites ----------- Power Light Ion Engine Engine Light Ion Engine Propulsion Light Treads Treads Light Treads Flight Unit Flight Unit Utility Visual Processing Unit Device Structural Scanner Storage High-capacity Storage Unit Processor Visual Processing Unit Protection Light Armor Plating Weapon Heavy Assault Rifle Energy Gun Improved Medium Laser Ballistic Gun Heavy Assault Rifle Launcher Grenade Launcher Build | -11 -10 -9 -9 ------- Run | Yrd Mat Mat Min Slots Evolved 2 | . . 2 . Power . | . . . . Propulsion . | . . . . Utility 2 | . . 2 . Weapon . | . . . . Parts Attached 53 | 5 21 23 4 Power 4 | 1 1 2 . Engine 4 | 1 1 2 . Core . | . . . . Reactor . | . . . . Propulsion 10 | 2 3 4 1 Treads 8 | 2 3 3 . Leg . | . . . . Wheel . | . . . . Hover . | . . . . Flight 2 | . . 1 1 Utility 18 | 1 6 9 2 Device 7 | . 3 4 . Storage 7 | 1 2 2 2 Processor 3 | . 1 2 . Hackware . | . . . . Protection 1 | . . 1 . Artifact . | . . . . Weapon 21 | 1 11 8 1 Energy Gun 1 | . . 1 . Energy Cannon . | . . . . Ballistic Gun 10 | 1 5 4 . Ballistic Cannon . | . . . . Launcher 10 | . 6 3 1 Special Weapon . | . . . . Impact Weapon . | . . . . Slashing Weapon . | . . . . Piercing Weapon . | . . . . Special Melee Weapon . | . . . . Unidentified Prototypes 2 | . . 2 . Parts Lost 14 | . 1 11 2 Power 3 | . . 2 1 Propulsion 5 | . 1 3 1 Utility 2 | . . 2 . Weapon 4 | . . 4 . Highest Loss Streak 5 | . 1 5 2 To Critical Strikes . | . . . . Average Slot Usage (%) 79 | . 87 71 74 Engine 7 | . 13 1 8 Treads 20 | . 24 16 8 Device 9 | . 7 12 11 Storage 9 | . 14 3 21 Processor 8 | . 2 14 11 Protection 1 | . . 2 . Ballistic Gun 14 | . 14 16 . Launcher 6 | . 9 3 2 Naked Turns 6 | . . 6 . Heaviest Build 50 | 9 50 30 19 Greatest Support 40 | 40 40 40 20 Greatest Overweight (x) 14 | . 14 7 6 Average Overweight (x) . | . . . . Largest Inventory Capacity 20 | 8 20 15 10 Average Capacity 12 | 6 18 5 9 Most Carried 12 | . 12 5 5 Average Carried 5 | . 6 4 4 Final Capacity 15 | 8 15 5 10 Final Carried 4 | . 2 4 4 Class Distribution -------------------- 80% | Mutant 11% | Scavenger-Mutant 7% | Scavenger-Skirmisher Dominant Class ---------------- Mutant | -10/Materials Mutant | -9/Materials Mutant | -9/Mines Resources | -11 -10 -9 -9 ----------- Run | Yrd Mat Mat Min Matter Collected 1450 | 228 236 828 158 Remotely . | . . . . Salvage Created 1264 | . 229 916 119 Parts 112 | . 23 76 13 Haulers Intercepted 2 | . . 2 . Recyclers Shooed 6 | . 1 5 . Parts Field Recycled . | . . . . Retrieved Matter . | . . . . Parts Self-Destructed . | . . . . Prevented . | . . . . Kills | -11 -10 -9 -9 ------- Run | Yrd Mat Mat Min Combat Hostiles Destroyed 33 | . 9 20 4 Melee 4 | . 2 2 . Guns 6 | . . 5 1 AOE 23 | . 7 13 3 Classes Destroyed 9 | . 6 3 . Worker 5 | . 1 4 . Builder 5 | . 1 3 1 Tunneler 3 | . . 2 1 Hauler 2 | . . 2 . Recycler 5 | . 1 3 1 Watcher 4 | . 1 3 . Swarmer 11 | . 3 4 4 Grunt 16 | . 6 10 . Sentry 6 | . . 6 . Best Kill Streak 10 | . 3 10 5 Combat Bots Only 7 | . 3 7 4 Max Kills in Single Turn 4 | . 3 2 4 Gunslinging . | . . . . Exploded 3 | . 3 1 3 Melee 1 | . 1 1 . Uniques/NPCs Destroyed . | . . . . Combat | -11 -10 -9 -9 -------- Run | Yrd Mat Mat Min Hostile Shots Fired 170 | . 27 129 14 Missed 41 | . 8 29 4 Damage Taken 1982 | . 420 1441 121 Core 473 | . 63 349 61 Absorbed by Shields 32 | . . 32 . Core Remaining (%) 87 | 100 74 . . Volleys Fired 89 | . 13 71 5 Largest 2 | . 2 2 1 Hottest 89 | . 60 89 56 Shots Fired 136 | . 23 108 5 Gun 86 | . 7 76 3 Cannon . | . . . . Launcher 50 | . 16 32 2 Special . | . . . . Kinetic 82 | . 7 75 . Thermal 4 | . . 1 3 Explosive 50 | . 16 32 2 Electromagnetic . | . . . . Robot Hit Streak 14 | . 5 14 2 Robot Miss Streak 3 | . 2 3 1 Penetration Max . | . . . . Secondary Targets 1 | . . 1 . Max Gunslinging Chain 1 | . . 1 . Shots Hit Robots 83 | . 9 71 3 Core Hits 86 | . 22 57 7 Critical Kills . | . . . . Critical Parts Destroyed . | . . . . Critical Strikes . | . . . . Melee Attacks . | . . . . Impact . | . . . . Slashing . | . . . . Piercing . | . . . . Sneak Attacks . | . . . . Combat Hostiles . | . . . . Follow-up Attacks . | . . . . Damage Inflicted 3316 | . 797 2209 310 Guns 798 | . 33 730 35 Cannons . | . . . . Explosions 2444 | . 738 1431 275 Melee . | . . . . Ramming 74 | . 26 48 . Kinetic 763 | . 33 730 . Thermal 111 | . . 76 35 Explosive 2355 | . 725 1355 275 Electromagnetic 13 | . 13 . . Impact . | . . . . Slashing . | . . . . Piercing . | . . . . Highest Corruption 4 | . 2 4 4 Average Corruption 1 | . 2 1 4 Corruption Purged . | . . . . Corruption Blocked . | . . . . Effects 40 | . 20 17 3 Message Errors 8 | . 3 4 1 Matter Fused 13 | . 7 5 1 Heat Flow Errors 7 | . 4 2 1 Energy Discharges 3 | . 1 2 . Parts Rejected 1 | . . 1 . Data Loss (minor) 5 | . 4 1 . Misfires 1 | . 1 . . Weapon Failures 2 | . . 2 . Overload Shots . | . . . . Overflow Damage 33 | . . 33 . Projectiles . | . . . . Explosions 33 | . . 33 . Melee . | . . . . Knockbacks 1 | . . 1 . Impact 1 | . . 1 . Kinetic . | . . . . Secondary . | . . . . Self-Inflicted Damage 401 | . 184 171 46 Shots 18 | . 10 6 2 Rammed 25 | . 7 18 . Targets Rammed 30 | . 9 21 . Kicked . | . . . . Crushed 5 | . 2 3 . Highest Temperature 270 | . 270 268 168 Average Temperature 106 | . 115 98 73 Received Heat Transfer 575 | . 120 455 . Siege Activations . | . . . . Robots Corrupted . | . . . . Combat Hostiles . | . . . . Parts Fried . | . . . . Impact Corruptions . | . . . . Robots Melted . | . . . . Combat Hostiles . | . . . . Parts Melted . | . . . . Heat Transferred 174 | . . 100 74 Parts Sabotaged . | . . . . Parts Stolen . | . . . . Parts Stripped . | . . . . Power Chain Reactions . | . . . . Alert | -11 -10 -9 -9 ------- Run | Yrd Mat Mat Min Peak Influence 497 | . 193 497 272 Initial 160 | . . 48 160 Average 84 | . 56 108 180 Maximum Alert Level 2 | . . 2 1 Low Security (%) 94 | 100 100 88 81 Level 1 1 | . . 2 18 Level 2 4 | . . 8 . Level 3 . | . . . . Level 4 . | . . . . Level 5 . | . . . . High Security . | . . . . Max Security . | . . . . Squads Dispatched 7 | . 3 4 . Investigation 4 | . 2 2 . Extermination . | . . . . Reinforcement 3 | . 1 2 . Assault . | . . . . Garrison . | . . . . Intercept . | . . . . Searches Triggered . | . . . . Construction Impeded 1 | . . 1 . Haulers Reinforced . | . . . . Active Scanning Responses . | . . . . Cargo Convoy Interrupts . | . . . . Stealth | -11 -10 -9 -9 --------- Run | Yrd Mat Mat Min Distress Signals 3 | . 2 1 . Communications Jammed . | . . . . Distress Signals . | . . . . Times Spotted 49 | . 17 28 4 Peak Tracking Total 6 | . 4 6 4 Tactical Retreats 1 | . . 1 . Traps | -11 -10 -9 -9 ------- Run | Yrd Mat Mat Min Traps Triggered 7 | . 5 2 . Indirectly . | . . . . Trap Hack Attempts . | . . . . Triggered . | . . . . Disarmed . | . . . . Reprogrammed . | . . . . Reused . | . . . . Traps Extracted . | . . . . Installed . | . . . . Triggered . | . . . . Machines | -11 -10 -9 -9 ---------- Run | Yrd Mat Mat Min Machines Disabled 10 | . 4 4 2 Max in Single Turn 2 | . 2 1 2 Machines Repaired . | . . . . Machines Dismantled . | . . . . Machines Sabotaged . | . . . . Overloaded Fab Kills . | . . . . Hacking | -11 -10 -9 -9 --------- Run | Yrd Mat Mat Min Machines Accessed 7 | . 3 4 . Terminals 5 | . 2 3 . Fabricators . | . . . . Repair Stations . | . . . . Recycling Units 1 | . 1 . . Scanalyzers 1 | . . 1 . Garrison Access . | . . . . Total Hacks 26 | . 10 16 . Successful 14 | . 5 9 . Failed 12 | . 5 7 . Catastrophic 1 | . 1 . . Database Lockouts . | . . . . Manual 17 | . 7 10 . Terminals 21 | . 7 14 . Fabricators . | . . . . Repair Stations . | . . . . Recycling Units 3 | . 3 . . Scanalyzers 2 | . . 2 . Garrison Access . | . . . . Terminal Hacks 9 | . 2 7 . Record 7 | . . 7 . Part Schematic 1 | . 1 . . Alert Level 1 | . 1 . . Fabricator Hacks . | . . . . Repair Station Hacks . | . . . . Recycling Unit Hacks 3 | . 3 . . Retrieve Matter 3 | . 3 . . Scanalyzer 2 | . . 2 . Insert Component 1 | . . 1 . Analyze 1 | . . 1 . Garrison Access Hacks . | . . . . Unauthorized Hacks . | . . . . Terminals . | . . . . Fabricators . | . . . . Repair Stations . | . . . . Recycling Units . | . . . . Scanalyzers . | . . . . Garrison Access . | . . . . Data Cores Recovered . | . . . . Used . | . . . . Hacking Detections 7 | . 3 4 . Full Trace Events 4 | . 2 2 . Feedback Events 1 | . . 1 . Corruption 1 | . . 1 . Feedback Blocked . | . . . . Robot Schematics Acquired . | . . . . Robots Built . | . . . . Authchips . | . . . . Time . | . . . . Total Robot Build Rating . | . . . . Part Schematics Acquired 2 | . 1 1 . Parts Built . | . . . . Authchips . | . . . . Time . | . . . . Total Part Build Rating . | . . . . Parts Repaired . | . . . . Time . | . . . . Parts Recycled . | . . . . Recycled Matter . | . . . . Retrieved Matter 5 | . 5 . . Retrieved Components . | . . . . Parts Scanalyzed 1 | . . 1 . Part Schematics Acquired 1 | . . 1 . Parts Damaged . | . . . . Bothacking | -11 -10 -9 -9 ------------ Run | Yrd Mat Mat Min Used RIF Installer . | . . . . Robots Hacked . | . . . . Non-combat . | . . . . Combat . | . . . . Robot Hacks Applied . | . . . . Relay Couplers Released . | . . . . Fabnet Peak Effective % . | . . . . Robots Rewired . | . . . . Allies Hacked . | . . . . Hacks Repelled . | . . . . Allies | -11 -10 -9 -9 -------- Run | Yrd Mat Mat Min Total Allies . | . . . . Largest Group . | . . . . Highest-Rated Group . | . . . . Highest-Rated Ally . | . . . . Total Orders . | . . . . Ally Attacks . | . . . . Total Damage . | . . . . Kills . | . . . . Allies Corrupted . | . . . . Allies Melted . | . . . . Intel | -11 -10 -9 -9 ------- Run | Yrd Mat Mat Min Robot Analysis Total . | . . . . Derelict Logs Recovered . | . . . . Drone Launches . | . . . . Drone Recoveries . | . . . . Exploration | -11 -10 -9 -9 ------------- Run | Yrd Mat Mat Min Turns Passed 3637 | 72 1771 1646 148 Spaces Moved 1465 | 43 709 639 74 Core 91 | 3 3 79 6 Treads 1373 | 40 706 560 67 Legs . | . . . . Wheels . | . . . . Hover . | . . . . Flight 1 | . . . 1 Fastest Speed 50 | 50 160 50 160 Average Speed 197 | 152 232 163 178 Slowest Speed 750 | 160 750 400 360 Overloaded Moves . | . . . . Propulsion Burnouts . | . . . . Robots Hopped . | . . . . Cave-ins Triggered . | . . . . Exploration Rate (%) 32 | 5 68 40 17 Regions Visited 3 Branch Regions 1 Pre-discovered Areas . | . . . . Known Exits Taken . | . . . . Unknown Exits Taken 3 | 1 1 1 . Scrap Searched . | . . . . Spaces Dug . | . . . . Terrain Destroyed 316 | . 108 198 10 Melee . | . . . . Projectile . | . . . . AOE 316 | . 108 198 10 Terrain Rammed . | . . . . Walls Destroyed . | . . . . Machines Disabled . | . . . . Actions | -11 -10 -9 -9 --------- Run | Yrd Mat Mat Min Total 2051 | 47 803 1115 86 Wait 365 | . 27 337 1 Move 1462 | 42 708 638 74 Hop . | . . . . Pick Up 22 | . 11 11 . Fast Attach 33 | 5 10 15 3 Attach 9 | . 3 5 1 Detach 9 | . 4 3 2 Swap 11 | . 8 3 . Drop 21 | . 10 11 . Fire 89 | . 13 71 5 Melee . | . . . . Ram 1 | . . 1 . Kick . | . . . . Crush 29 | . 9 20 . Escape Stasis . | . . . . Rewire . | . . . . Trap . | . . . . Miscellaneous . | . . . . Route ------- -11/Scrapyard -10/Materials (discovered 2 exits: *Mat x2) -9/Materials (discovered 2 exits: [*Min] / [*Sto]) -9/Mines (discovered 2 exits: [*Mat] / [*Exi]) History --------- Turn | Location | Event 39 | -11/Scrapyard | Discovered new exit (range 16) 73 | -11/Scrapyard | Entered Materials 307 | -10/Materials | Build established: Mutant 462 | -10/Materials | Discovered new exit (range 5) 1758 | -10/Materials | Discovered new exit (range 15) 1844 | -10/Materials | Entered another Materials area 1844 | -9/Materials | Evolved 2 slots: Utility x2 2039 | -9/Materials | Lost 3 parts (1u2w) 2582 | -9/Materials | Build established: Scavenger-Mutant 3038 | -9/Materials | Discovered new exit (range 14) 3291 | -9/Materials | Core integrity fell below 50% 3321 | -9/Materials | Discovered new exit (range 11) 3334 | -9/Materials | Destroyed 7 combat bots 3339 | -9/Materials | Core integrity fell below 20% 3367 | -9/Materials | Lost 5 parts (1p2n2w) 3490 | -9/Materials | Entered Mines 3496 | -9/Mines | Met a Derelict bent on vengeance 3549 | -9/Mines | Build established: Mutant 3566 | -9/Mines | Deemed a non-threat by the Exiles lab entrance 3566 | -9/Mines | Discovered new exit (range 5) 3610 | -9/Mines | Discovered new exit (range 12) 3638 | -9/Mines | Destroyed self with Rocket Launcher Last Messages --------------- 03619_ K-01 Serf cleans the Core Extractor. 03623_ K-01 Serf collects debris. 03626_ Acquired 11 matter. 03626_ K-01 Serf cleans the Core Extractor. 03628_ U-05 Engineer lays Concrete. 03629_ U-05 Engineer builds a Wall. 03629_ R-06 Scavenger collects Flight Unit. 03630_ K-01 Serf collects debris. 03633_ U-05 Engineer lays Concrete. 03633_ Acquired Flight Unit. 03633_ R-06 Scavenger collects Lgt. Assault Rifle. 03634_ U-05 Engineer lays Concrete. 03635_ K-01 Serf collects debris. 03636_ U-05 Engineer lays Concrete. 03636_ R-06 Scavenger collects Imp. Terrain Scanner. 03637_ U-05 Engineer lays Concrete. 03638_ R-06 Scavenger destroyed. 03638_ U-05 Engineer destroyed. Map ----- +----------------------------------------------------+ | ??????????????????????????????????????? | | ??????????????????????????????????????? | | ??????????????????????????????????????? | | ??????????????????????????????????????? | | ??????????????????????????????????????? | | ?????????????????##########???????????? | | ?????????????????##########???????????? | | ?????????????????## ##???????????? | | ?????????????????## !! ##???????????? | | ?????????????????## ! ##???????????? | | ?????????????????## !! ##???????????? | | ????????????????### ! ###??????????? | | ????????????????### ###??????????? | | ??????????????#### ######??????? | | ?????????????### ### ######??????? | | ????????????### #### ##??????? | | ???????????### ######### ##??????? | | ???????????## ### ###### ##??????? | | ???????????## ### ##### ##??????? | | ???????????### #### ### ####?? ## | | ????????############# ## ### ## | | ??################### ## | | ??######## ###### ### # | | ??## % =##### #### ##????# | | ??## |%! ####? ##????# | | ??## r@ % #####?? ##????? | | ??## < " #########??????????? | | ??## k [%=# #######????????????? | | ??## """ " |### ##?????????????????? | | ??## """ " " ### ##?????????????????? | | ??## """ """ ### ##?????????????????? | | ?????? ### ##?????????????????? | | ????? """ """ ### ##?????????????????? | | ????? """ """ ### ####???????????????? | | ???????"" """ ### #####??????????????? | | ??????? ?? ### ###??????????????? | | ????????????" ##### ##??????????????? | | ????????????" ##### ###??????????????? | | ????????????" #### ###??????????????? | | ???????????? #### ###???????????????? | | ???????????? ###< ###???????????????? | | ????????????#########?????????????????? | | ????????????#########?????????????????? | | ??????????????????????????????????????? | | | | | | | | | | | | | +----------------------------------------------------+ Best States ------------- Heat Dissipation 50 Energy Generation 10 Energy Capacity 125 Matter Stores 405 Matter Capacity 450 Sight Range 18 Terrain Scan Range 16 Terrain Scan Density 110 Armor Coverage 150 Evasion (%) 40 Recoil Reduction 2 Item Schematics ----------------- ECM Suite | -10/Materials | Hacked Rocket Launcher | -9/Materials | Scanalyzed Robot Schematics ------------------ None Fabricated ------------ Nothing Alien Tech Used ----------------- None Achievements -------------- Hey, That's Mine! Let's See Who's Tougher Omniscient Cartographer Oops Remodeling Challenges ------------ None Game ------ Seed DefenseShadeFlakker Manual? 0 Play Time 00:40:00 Cumulative 2.7 hours Start 2024.04.04 @ 10:54:44 End 2024.04.06 @ 19:01:58 Sessions 4 Manual Loads 0 Difficulty Rogue Special Mode None Game No. 7 Rogue 5 Adventurer 0 Explorer 2 Win Type - Total 0 Types 0/0/0/0/0/0/0/0/0 Lore% 2 Gallery% 5 Achievement% 9 Wizard Run 0 Options --------- Layout 1 ASCII 0 Keyboard 1 Movement Vi Keybinds 0 Fullscreen 1 Font 32/SmallcapsGlow Map View 50x35 Zoom Use 0% Tactical HUD 1 Map Filters NONE Filters NONE Steam 1 RUN: a355a6a8-bf8f-4aa5-acd3-e47e0c57d807